Workbook

Sheet Welcome (hidden)

Sheet Inputs
A1: Introduction
A3: This template has been developed to assist in the review of valuations of share based payments.
A4: It is the user's responsibility to understand the instrument being valued and apply the appropriate methodology, given the specific circumstances.
A5: Leadenhall Corporate Advisory Pty Ltd is not be liable for any loss or damage which may be sustained by any person using or relying on this template.
A7: Inputs
A9: Variable | B9: Input | C9: Notes
A11: Current price | B11: 1.2 | C11: Current share price on grant date
A12: Exercise price | B12: 1.5 | C12: Cannot be zero, use 0.0001 for zero exercise price
A13: Life (years) | B13: 2.5 | C13: Consider likelihood of early exercise
A14: Volatility | B14: 0.4 | C14: See volatility sheet
A15: Risk free rate | B15: 0.015 | C15: Period should match life - can be sourced from RBA statistics
A16: Dividend yield | B16: 0.02 | C16: Should be prospective dividend yield
A18: Contact details
A19: For option valuation advice please contact:
A21: Richard Norris
A22: Richard.Norris@Leadenhall.com.au
A23: 0416 152 823

Sheet Black-Scholes
A1: Black-Scholes option valuation
A3: Variable | B3: Inputs
A5: Spot price | B5: =Inputs!B11 -> 1.2
A6: Exercise price | B6: =Inputs!B12 -> 1.5
A7: Life | B7: =Inputs!B13 -> 2.5
A8: Volatility | B8: =Inputs!B14 -> 0.4
A9: Rf | B9: =LN(1+Inputs!B15) -> 0.01488861249
A10: Dividend yield | B10: =LN(1+Inputs!B16) -> 0.0198026273
A12: d1 | B12: =(LN(B5/B6)+(B9-B10+(B8^2/2))*B7)/((B8)*(B7^0.5)) -> -0.05601751669
A13: N(d1) | B13: =NORMSDIST(B12) -> 0.4776639264
A14: d2 | B14: =B12-(B8*(B7^(0.5))) -> -0.6884730487
A15: N(d2) | B15: =NORMSDIST(B14) -> 0.2455774683
A16: Call option value | B16: =(EXP((0-B10)*B7))*B5*B13-B6*(EXP((0-B9)*B7))*B15 -> 0.1906035974
A18: Put option value | B18: =B16-B5*EXP((-B10)*B7)+B6*EXP((-B9)*(B7)) -> 0.4937589208

Sheet Binomial
A1: Binomial option valuation
A3: Variable | D3: Input
A5: Spot price | D5: =Inputs!B11 -> 1.2 | F5: Note
A6: Exercise price | D6: =Inputs!B12 -> 1.5 | F6: This is a simplistic example with a small number of steps, prepared to demonstrate the binomial method.
A7: Life | D7: =Inputs!B13 -> 2.5
A8: Volatility | D8: =Inputs!B14 -> 0.4 | F8: It should not be used for valuation purposes.
A9: Rf | D9: =LN(1+Inputs!B15) -> 0.01488861249
A10: Dividend yield | D10: =LN(1+Inputs!B16) -> 0.0198026273
A12: Steps | B12: 5 | D12: Note: this example is set for 5 steps
A13: Interval | B13: =D7/B12 -> 0.5
A14: Up | B14: =EXP(D8*SQRT(B13)) -> 1.326896441
A15: Down | B15: =EXP(-D8*SQRT(B13)) -> 0.7536383164
A16: Pup | B16: =(EXP((D9-D10)*B13)-B15)/(B14-B15) -> 0.4254762063
A17: Pdown | B17: =1-B16 -> 0.5745237937
A18: Discount factor | B18: =EXP(-D9*B13) -> 0.992583334
B20: T0 | D20: T1 | F20: T2 | H20: T3 | J20: T4 | L20: T5
L21: =J22*$B$14 -> 4.935900455
J22: =H23*$B$14 -> 3.719883709
H23: =F24*$B$14 -> 2.803446896 | L23: =J22*$B$15 -> 2.803446896
F24: =D25*$B$14 -> 2.112784999 | J24: =H23*$B$15 -> 2.112784999
D25: =B26*$B$14 -> 1.592275729 | H25: =F24*$B$15 -> 1.592275729 | L25: =J24*$B$15 -> 1.592275729
A26: Stock price | B26: =D5 -> 1.2 | F26: =D25*$B$15 -> 1.2 | J26: =H25*$B$15 -> 1.2
D27: =B26*$B$15 -> 0.9043659797 | H27: =F26*$B$15 -> 0.9043659797 | L27: =J26*$B$15 -> 0.9043659797
F28: =D27*$B$15 -> 0.6815648544 | J28: =H27*$B$15 -> 0.6815648544
H29: =F28*$B$15 -> 0.5136533894 | L29: =J28*$B$15 -> 0.5136533894
J30: =H29*$B$15 -> 0.3871088756
L31: =J30*$B$15 -> 0.2917400813
L34: =MAX(L21-$D$6,0) -> 3.435900455
J35: =((L34*$B$16)+(L36*$B$17))*$B$18 -> 2.194358713
H36: =((J35*$B$16)+(J37*$B$17))*$B$18 -> 1.270644836 | L36: =MAX(L23-$D$6,0) -> 1.303446896
F37: =((H36*$B$16)+(H38*$B$17))*$B$18 -> 0.694537816 | J37: =((L36*$B$16)+(L38*$B$17))*$B$18 -> 0.6030938743
D38: =((F37*$B$16)+(F39*$B$17))*$B$18 -> 0.3653618594 | H38: =((J37*$B$16)+(J39*$B$17))*$B$18 -> 0.2769220668 | L38: =MAX(L25-$D$6,0) -> 0.09227572937
A39: Option payoff | B39: =((D38*$B$16)+(D40*$B$17))*$B$18 -> 0.1869858923 | F39: =((H38*$B$16)+(H40*$B$17))*$B$18 -> 0.126335166 | J39: =((L38*$B$16)+(L40*$B$17))*$B$18 -> 0.0389699406
D40: =((F39*$B$16)+(F41*$B$17))*$B$18 -> 0.05731753686 | H40: =((J39*$B$16)+(J41*$B$17))*$B$18 -> 0.01645780836 | L40: =MAX(L27-$D$6,0) -> 0
F41: =((H40*$B$16)+(H42*$B$17))*$B$18 -> 0.006950471359 | J41: =((L40*$B$16)+(L42*$B$17))*$B$18 -> 0
H42: =((J41*$B$16)+(J43*$B$17))*$B$18 -> 0 | L42: =MAX(L29-$D$6,0) -> 0
J43: =((L42*$B$16)+(L44*$B$17))*$B$18 -> 0
L44: =MAX(L31-$D$6,0) -> 0
A45: Call option value | B45: =B39 -> 0.1869858923

Sheet Mini MC
A1: Mini Monte-Carlo example
A3: Note
A4: This is a simplistic example with a small number of observations to demonstrate the operation of a Monte Carlo model.
A5: It is based on a small number of randomly generated samples.
A6: It should not be used for valuation purposes
A8: Variable | B8: Input
A9: Spot price | B9: =Inputs!B11 -> 1.2
A10: Exercise price | B10: =Inputs!B12 -> 1.5
A11: Life | B11: =Inputs!B13 -> 2.5
A12: Volatility | B12: =Inputs!B14 -> 0.4
A13: Rf | B13: =LN(1+Inputs!B15) -> 0.01488861249
A14: Dividend yield | B14: =LN(1+Inputs!B16) -> 0.0198026273
A15: Dividend | B15: =B9*((1+B14)^B11-1) -> 0.06029311089
A17: Call option value | B17: =AVERAGE(D20:D219) -> 0.1849972089
A19: Random Numbers | B19: Future price | C19: Pay-off | D19: Present value
A20: 1.998623759 | B20: =$B$9*(1+(EXP(($B$13-0.5*($B$12)^2)*$B$11+($B$12*($B$11^(0.5))*A20)))-1)-$B$15 -> 3.549259162 | C20: =MAX(B20-B$10,0) -> 2.049259162 | D20: =EXP(-B$13*B$11)*C20 -> 1.974384713
A21: 0.4584742441 | B21: =$B$9*(1+(EXP(($B$13-0.5*($B$12)^2)*$B$11+($B$12*($B$11^(0.5))*A21)))-1)-$B$15 -> 1.3024609 | C21: =MAX(B21-B$10,0) -> 0 | D21: =EXP(-B$13*B$11)*C21 -> 0
A22: 0.4640066871 | B22: =$B$9*(1+(EXP(($B$13-0.5*($B$12)^2)*$B$11+($B$12*($B$11^(0.5))*A22)))-1)-$B$15 -> 1.307237561 | C22: 0 | D22: 0
A23: 1.23345136 | B23: 2.164460614 | C23: 0.6644606137 | D23: 0.640183
A24: -0.1459460441 | B24: 0.869529646 | C24: 0 | D24: 0
A25: -1.047096217 | B25: 0.4655782237 | C25: 0 | D25: 0
A26: 1.595316013 | B26: 2.736600917 | C26: 1.236600917 | D26: 1.191418827
A27: -0.09591988133 | B27: 0.8994189544 | C27: 0 | D27: 0
A28: 0.4686832279 | B28: 1.311288299 | C28: 0 | D28: 0
A29: -1.094437028 | B29: 0.4500665089 | C29: 0 | D29: 0
A30: 0.2493832671 | B30: 1.133656623 | C30: 0 | D30: 0
A31: -1.990472122 | B31: 0.2292815797 | C31: 0 | D31: 0
A32: 0.990438551 | B32: 1.847508192 | C32: 0.3475081922 | D32: 0.3348111723
A33: -1.108264362 | B33: 0.4456227841 | C33: 0 | D33: 0
A34: 0.9933752898 | B34: 1.851054952 | C34: 0.3510549525 | D34: 0.3382283435
A35: 0.2534782422 | B35: 1.136752828 | C35: 0 | D35: 0
A36: 0.4696354488 | B36: 1.312114566 | C36: 0 | D36: 0
A37: 0.5682942044 | B37: 1.400477192 | C37: 0 | D37: 0
A38: 1.747189257 | B38: 3.018576743 | C38: 1.518576743 | D38: 1.463092011
A39: 0.7148792555 | B39: 1.542379196 | C39: 0.04237919615 | D39: 0.04083077367
A40: -0.03164354842 | B40: 0.9392369503 | C40: 0 | D40: 0
A41: 0.1307798536 | B41: 1.047373367 | C41: 0 | D41: 0
A42: 1.39175138 | B42: 2.398729474 | C42: 0.8987294736 | D42: 0.8658923024
A43: 1.093198782 | B43: 1.975616507 | C43: 0.4756165067 | D43: 0.4582387516
A44: 1.784117491 | B44: 3.091331487 | C44: 1.591331487 | D44: 1.533188491
A45: -0.1097133488 | B45: 0.8910830745 | C45: 0 | D45: 0
A46: 1.062001074 | B46: 1.935839357 | C46: 0.4358393568 | D46: 0.4199149524
A47: 1.193691704 | B47: 2.109214013 | C47: 0.6092140126 | D47: 0.586954962
A48: -0.369935047 | B48: 0.7467127252 | C48: 0 | D48: 0
A49: 0.07456566382 | B49: 1.008684358 | C49: 0 | D49: 0
A50: 0.7536243725 | B50: 1.582137117 | C50: 0.08213711742 | D50: 0.07913604683
A51: -0.1891930664 | B51: 0.8444419637 | C51: 0 | D51: 0
A52: 1.354624849 | B52: 2.341662078 | C52: 0.8416620784 | D52: 0.8109099972
A53: -0.4641708543 | B53: 0.7000204607 | C53: 0 | D53: 0
A54: -1.837653416 | B54: 0.2586664409 | C54: 0 | D54: 0
A55: 1.457376321 | B55: 2.502938484 | C55: 1.002938484 | D55: 0.9662937947
A56: -0.5373014691 | B56: 0.6656553926 | C56: 0 | D56: 0
A57: -0.5142606296 | B57: 0.6763115908 | C57: 0 | D57: 0
A58: 1.431645183 | B58: 2.46156255 | C58: 0.9615625501 | D58: 0.9264296264
A59: 1.692997822 | B59: 2.914840432 | C59: 1.414840432 | D59: 1.363145947
A60: 0.3680954614 | B60: 1.22674958 | C60: 0 | D60: 0
A61: 0.6156034152 | B61: 1.444845318 | C61: 0 | D61: 0
A62: 0.3841228876 | B62: 1.239862208 | C62: 0 | D62: 0
A63: 0.7750788023 | B63: 1.604575094 | C63: 0.1045750944 | D63: 0.1007542001
A64: -0.3085864021 | B64: 0.7786401773 | C64: 0 | D64: 0
A65: -0.9252707093 | B65: 0.5076980111 | C65: 0 | D65: 0
A66: -0.5052615487 | B66: 0.6805159433 | C66: 0 | D66: 0
A67: -0.6175793108 | B67: 0.6297174585 | C67: 0 | D67: 0
A68: -0.4607734727 | B68: 0.7016558974 | C68: 0 | D68: 0
A69: -0.09984089597 | B69: 0.8970419442 | C69: 0 | D69: 0
A70: -0.3089947927 | B70: 0.7784235182 | C70: 0 | D70: 0
A71: 1.650886433 | B71: 2.836647868 | C71: 1.336647868 | D71: 1.28781033
A72: -1.153413775 | B72: 0.4313806674 | C72: 0 | D72: 0
A73: 0.4615119443 | B73: 1.305081553 | C73: 0 | D73: 0
A74: -1.500034022 | B74: 0.3345914817 | C74: 0 | D74: 0
A75: 0.3616717893 | B75: 1.221531336 | C75: 0 | D75: 0
A76: 1.674927178 | B76: 2.881031558 | C76: 1.381031558 | D76: 1.330572358
A77: -1.390118642 | B77: 0.3630191625 | C77: 0 | D77: 0
A78: 0.3975063338 | B78: 1.250913995 | C78: 0 | D78: 0
A79: -0.04760460665 | B79: 0.9291977908 | C79: 0 | D79: 0
A80: 0.08474487053 | B80: 1.015588523 | C80: 0 | D80: 0
A81: 0.4207812115 | B81: 1.270358151 | C81: 0 | D81: 0
A82: -0.2555952466 | B82: 0.8072331119 | C82: 0 | D82: 0
A83: 0.3657390096 | B83: 1.224832863 | C83: 0 | D83: 0
A84: -0.4271262353 | B84: 0.7180442194 | C84: 0 | D84: 0
A85: 0.02686133984 | B85: 0.9769140628 | C85: =MAX(B85-B$10,0) -> 0 | D85: =EXP(-B$13*B$11)*C85 -> 0
A86: 0.1433414589 | B86: =$B$9*(1+(EXP(($B$13-0.5*($B$12)^2)*$B$11+($B$12*($B$11^(0.5))*A86)))-1)-$B$15 -> 1.056208446 | C86: 0 | D86: 0
A87: 0.3872746898 | B87: 1.242456489 | C87: 0 | D87: 0
A88: -0.09270604365 | B88: 0.901371658 | C88: 0 | D88: 0
A89: 1.012305197 | B89: 1.874075763 | C89: 0.3740757631 | D89: 0.3604080352
A90: -0.2556915388 | B90: 0.8071802807 | C90: 0 | D90: 0
A91: 0.3323790122 | B91: 1.198002396 | C91: 0 | D91: 0
A92: -0.704482087 | B92: 0.5928163702 | C92: 0 | D92: 0
A93: 0.3322876094 | B93: 1.197929659 | C93: 0 | D93: 0
A94: 0.1799357152 | B94: 1.082350376 | C94: 0 | D94: 0
A95: -1.680069741 | B95: 0.2920935233 | C95: 0 | D95: 0
A96: -0.1224127068 | B96: 0.8834724355 | C96: 0 | D96: 0
A97: 0.7125259421 | B97: 1.539995607 | C97: 0.03999560731 | D97: 0.03853427479
A98: 0.8524093554 | B98: 1.688024745 | C98: 0.1880247449 | D98: 0.1811548236
A99: 0.1446118203 | B99: 1.057105856 | C99: 0 | D99: 0
A100: -2.777834673 | B100: 0.1156994033 | C100: 0 | D100: 0
A101: 1.031396978 | B101: 1.897574276 | C101: 0.3975742756 | D101: 0.383047975
A102: -0.01454193352 | B102: 0.9501065554 | C102: 0 | D102: 0
A103: 1.055432808 | B103: 1.927564351 | C103: 0.4275643508 | D103: 0.411942293
A104: -0.9240076059 | B104: 0.5081519359 | C104: 0 | D104: 0
A105: 1.18813064 | B105: 2.101596987 | C105: 0.6015969869 | D105: 0.579616242
A106: 0.4913664768 | B106: 1.331107028 | C106: 0 | D106: 0
A107: -0.5988569821 | B107: 0.6379364663 | C107: 0 | D107: 0
A108: -0.8719606276 | B108: 0.5271750465 | C108: 0 | D108: 0
A109: -2.463492815 | B109: 0.1544083928 | C109: 0 | D109: 0
A110: -1.403634977 | B110: 0.3594159088 | C110: 0 | D110: 0
A111: -0.6257496036 | B111: 0.6261611309 | C111: 0 | D111: 0
A112: 0.05704847549 | B112: 0.9969066863 | C112: 0 | D112: 0
A113: -0.6182478712 | B113: 0.6294257597 | C113: 0 | D113: 0
A114: -1.551737748 | B114: 0.3218874786 | C114: 0 | D114: 0
A115: -1.255689686 | B115: 0.4005835585 | C115: 0 | D115: 0
A116: 0.2557831001 | B116: 1.138499059 | C116: 0 | D116: 0
A117: -0.5077793499 | B117: 0.6793372197 | C117: 0 | D117: 0
A118: -0.2339929153 | B118: 0.8191670391 | C118: 0 | D118: 0
A119: 1.83291156 | B119: 3.190107143 | C119: 1.690107143 | D119: 1.628355148
A120: 0.1184266866 | B120: 1.038753076 | C120: 0 | D120: 0
A121: 0.7992471008 | B121: 1.630218715 | C121: 0.1302187146 | D121: 0.125460871
A122: 0.5104928635 | B122: 1.348040436 | C122: 0 | D122: 0
A123: 0.4238646412 | B123: 1.272955629 | C123: 0 | D123: 0
A124: 1.166032191 | B124: 2.071591959 | C124: 0.5715919587 | D124: 0.5507075173
A125: 0.2258082561 | B125: 1.115986716 | C125: 0 | D125: 0
A126: 1.194601028 | B126: 2.110462071 | C126: 0.6104620705 | D126: 0.5881574192
A127: -0.07703808503 | B127: 0.9109484415 | C127: 0 | D127: 0
A128: -0.2885311998 | B128: 0.7893489989 | C128: 0 | D128: 0
A129: -0.7000665795 | B129: 0.5946428007 | C129: 0 | D129: 0
A130: 2.184947994 | B130: 4.000691804 | C130: 2.500691804 | D130: 2.409323214
A131: -0.8597439082 | B131: 0.5317317189 | C131: 0 | D131: 0
A132: 1.842813676 | B132: 3.21052713 | C132: 1.71052713 | D132: 1.648029044
A133: 0.7910439501 | B133: 1.621470835 | C133: 0.1214708349 | D133: 0.1170326155
A134: 0.1229009798 | B134: 1.041867552 | C134: 0 | D134: 0
A135: 0.3719246529 | B135: 1.229870309 | C135: 0 | D135: 0
A136: 0.3655143385 | B136: 1.224650267 | C136: 0 | D136: 0
A137: 0.1099173688 | B137: 1.032854155 | C137: 0 | D137: 0
A138: -0.027528689 | B138: 0.9418415807 | C138: 0 | D138: 0
A139: -0.4886766142 | B139: 0.6883273587 | C139: 0 | D139: 0
A140: 0.014653805 | B140: 0.9689369079 | C140: 0 | D140: 0
A141: -1.458971832 | B141: 0.3449809618 | C141: 0 | D141: 0
A142: -1.32990128 | B142: 0.3794518593 | C142: 0 | D142: 0
A143: -1.016977948 | B143: 0.4756912794 | C143: 0 | D143: 0
A144: -1.502636435 | B144: 0.3339420716 | C144: 0 | D144: 0
A145: 0.1551934928 | B145: 1.064609058 | C145: 0 | D145: 0
A146: 0.889731858 | B146: 1.729784405 | C146: 0.2297844046 | D146: 0.221388697
A147: 0.2016973849 | B147: 1.098185631 | C147: 0 | D147: 0
A148: -0.9423974639 | B148: 0.5015787833 | C148: 0 | D148: 0
A149: -0.6461353569 | B149: 0.6173674305 | C149: =MAX(B149-B$10,0) -> 0 | D149: =EXP(-B$13*B$11)*C149 -> 0
A150: 2.052775235 | B150: =$B$9*(1+(EXP(($B$13-0.5*($B$12)^2)*$B$11+($B$12*($B$11^(0.5))*A150)))-1)-$B$15 -> 3.675021847 | C150: 2.175021847 | D150: 2.095552366
A151: 1.709595117 | B151: 2.946235047 | C151: 1.446235047 | D151: 1.393393486
A152: -0.9913980199 | B152: 0.4844330465 | C152: 0 | D152: 0
A153: -0.8200418255 | B153: 0.5467855535 | C153: 0 | D153: 0
A154: -0.3364494653 | B154: 0.7639858698 | C154: 0 | D154: 0
A155: -0.4603032299 | B155: 0.7018825406 | C155: 0 | D155: 0
A156: 0.8696579056 | B156: 1.70720145 | C156: 0.2072014499 | D156: 0.1996308631
A157: 0.9296295363 | B157: 1.775529061 | C157: 0.2755290606 | D157: 0.2654619657
A158: -0.02028615683 | B158: 0.9464424677 | C158: 0 | D158: 0
A159: 0.5748655237 | B159: 1.406560885 | C159: 0 | D159: 0
A160: -0.8421552555 | B160: 0.5383541932 | C160: 0 | D160: 0
A161: -0.4005035188 | B161: 0.7312605718 | C161: 0 | D161: 0
A162: 0.7920625153 | B162: 1.622554572 | C162: 0.1225545717 | D162: 0.1180767554
A163: -0.6254088314 | B163: 0.6263090936 | C163: 0 | D163: 0
A164: 0.07622452502 | B164: 1.00980647 | C164: 0 | D164: 0
A165: 0.3794445818 | B165: 1.236020967 | C165: 0 | D165: 0
A166: 0.49912905 | B166: 1.337954879 | C166: 0 | D166: 0
A167: -0.4150953084 | B167: 0.7239891976 | C167: 0 | D167: 0
A168: -1.061521235 | B168: 0.460802422 | C168: 0 | D168: 0
A169: 1.131462581 | B169: 2.025486828 | C169: 0.525486828 | D169: 0.5062869448
A170: -0.8593561034 | B170: 0.5318769422 | C170: 0 | D170: 0
A171: 1.59541435 | B171: 2.736774873 | C171: 1.236774873 | D171: 1.191586427
A172: -0.672596268 | B172: 0.6061209141 | C172: 0 | D172: 0
A173: -0.04398907242 | B173: 0.9314630136 | C173: 0 | D173: 0
A174: -0.1008082054 | B174: 0.8964564447 | C174: 0 | D174: 0
A175: -1.092605385 | B175: 0.4506580687 | C175: 0 | D175: 0
A176: 0.9197978209 | B176: 1.76414911 | C176: 0.2641491105 | D176: 0.2544978085
A177: -0.331670093 | B177: 0.7664812207 | C177: 0 | D177: 0
A178: -1.133825828 | B178: 0.4375096568 | C178: 0 | D178: 0
A179: 0.428594084 | B179: 1.276949562 | C179: 0 | D179: 0
A180: -1.05152198 | B180: 0.4641083165 | C180: 0 | D180: 0
A181: 1.266186701 | B181: 2.211001249 | C181: 0.7110012488 | D181: 0.6850231649
A182: -1.802804572 | B182: 0.2657744632 | C182: 0 | D182: 0
A183: -1.185664687 | B183: 0.421453454 | C183: 0 | D183: 0
A184: 1.036417231 | B184: 1.903800553 | C184: 0.4038005532 | D184: 0.389046761
A185: 0.2491335638 | B185: 1.133468082 | C185: 0 | D185: 0
A186: 0.1937299369 | B186: 1.092362674 | C186: 0 | D186: 0
A187: 0.45503585 | B187: 1.299500632 | C187: 0 | D187: 0
A188: 0.04056756727 | B188: 0.9859442584 | C188: 0 | D188: 0
A189: 0.2921969671 | B189: 1.166427791 | C189: 0 | D189: 0
A190: -0.1132402117 | B190: 0.8889633152 | C190: 0 | D190: 0
A191: -0.2438141386 | B191: 0.8137212146 | C191: 0 | D191: 0
A192: -0.5528374442 | B192: 0.6585572875 | C192: 0 | D192: 0
A193: 0.9707976573 | B193: 1.823956085 | C193: 0.3239560848 | D193: 0.3121195959
A194: -0.6092042576 | B194: 0.6333820369 | C194: 0 | D194: 0
A195: 0.3867207086 | B195: 1.242000127 | C195: 0 | D195: 0
A196: -1.154651387 | B196: 0.430995968 | C196: 0 | D196: 0
A197: 0.8737401727 | B197: 1.711770756 | C197: 0.211770756 | D197: 0.204033219
A198: -1.35419424 | B198: 0.3727471602 | C198: 0 | D198: 0
A199: -1.011563255 | B199: 0.4775299324 | C199: 0 | D199: 0
A200: 0.2171194768 | B200: 1.109540472 | C200: 0 | D200: 0
A201: 1.375027091 | B201: 2.37285656 | C201: 0.8728565596 | D201: 0.8409647154
A202: 0.1297565929 | B202: 1.046656753 | C202: 0 | D202: 0
A203: 0.2175335101 | B203: 1.109846842 | C203: 0 | D203: 0
A204: 1.011233935 | B204: 1.872765622 | C204: 0.3727656224 | D204: 0.3591457636
... 15 more rows

Sheet Volatility
A1: Volatility
A3: Notes
A4: Insert daily prices in column B
A5: Use a period corresponding to the life of the option
A6: Extend down as far as needed
A8: Trading periods per year: | C8: 252
A10: Volatility
A11: Daily | C11: =STDEV(C15:C1048576) -> 0.03960438039
A12: Annual | C12: =C11*C8^0.5 -> 0.628700048
A14: Date | B14: Price | C14: Return
A15: 2017-01-10 | B15: 1.22
A16: 2017-01-09 | B16: 1.25 | C16: =IFERROR(LN(B16/B15),"") -> 0.02429269257
A17: 2017-01-06 | B17: 1.2 | C17: =IFERROR(LN(B17/B16),"") -> -0.04082199452
A18: 2017-01-05 | B18: 1.16 | C18: -0.03390155168
A19: 2017-01-04 | B19: 1.2 | C19: 0.03390155168
A20: 2017-01-03 | B20: 1.25 | C20: 0.04082199452
A21: 2017-01-02 | B21: 1.2 | C21: -0.04082199452
C80: =IFERROR(LN(B80/B79),"") -> 
C144: =IFERROR(LN(B144/B143),"") -> 
